[Event "Titled Tuesday Blitz May 03 Early 2022"]
[White "Camacho Collados, Jose"]
[Black "Andreikin, Dmitry"]
[WhiteFideId "2265427"]
[BlackFideId "4158814"]
[WhiteElo "2351"]
[BlackElo "2736"]
[Result "1/2-1/2"]
[Round "01"]
[TimeControl "180+1"]
[Date "2022.05.03"]
[WhiteClock "0:00:12"]
[BlackClock "0:00:35"]

1. c4 {[%clk 0:02:58]}  e5 {[%clk 0:02:59]} 2. g3 {[%clk 0:02:58]}  g6 {[%clk 0:02:58]} 3. Bg2 {[%clk 0:02:58]}  Bg7 {[%clk 0:02:58]} 4. Nc3 {[%clk 0:02:59]}  Ne7 {[%clk 0:02:59]} 5. d3 {[%clk 0:02:59]}  c6 {[%clk 0:02:58]} 6. e4 {[%clk 0:02:56]}  d6 {[%clk 0:02:58]} 7. Nge2 {[%clk 0:02:56]}  a6 {[%clk 0:02:59]} 8. a4 {[%clk 0:02:54]}  a5 {[%clk 0:02:59]} 9. O-O {[%clk 0:02:55]}  Na6 {[%clk 0:02:59]} 10. Be3 {[%clk 0:02:54]}  O-O {[%clk 0:02:56]} 11. d4 {[%clk 0:02:54]}  Bg4 {[%clk 0:02:48]} 12. h3 {[%clk 0:02:47]}  Bxe2 {[%clk 0:02:48]} 13. Nxe2 {[%clk 0:02:48]}  Qc7 {[%clk 0:02:47]} 14. Qb3 {[%clk 0:02:42]}  exd4 {[%clk 0:02:43]} 15. Bxd4 {[%clk 0:02:42]}  Nc5 {[%clk 0:02:43]} 16. Bxc5 {[%clk 0:02:27]}  dxc5 {[%clk 0:02:43]} 17. f4 {[%clk 0:02:28]}  Rad8 {[%clk 0:02:30]} 18. Rad1 {[%clk 0:02:25]}  Rxd1 {[%clk 0:02:18]} 19. Rxd1 {[%clk 0:02:26]}  Rd8 {[%clk 0:02:19]} 20. e5 {[%clk 0:02:25]}  Rxd1+ {[%clk 0:02:13]} 21. Qxd1 {[%clk 0:02:26]}  Nf5 {[%clk 0:02:09]} 22. Kh2 {[%clk 0:02:21]}  f6 {[%clk 0:02:07]} 23. exf6 {[%clk 0:01:55]}  Bxf6 {[%clk 0:02:08]} 24. Nc3 {[%clk 0:01:52]}  Bd4 {[%clk 0:01:57]} 25. Qe2 {[%clk 0:01:48]}  Kf7 {[%clk 0:01:53]} 26. Be4 {[%clk 0:01:36]}  Ne3 {[%clk 0:01:47]} 27. Qf3 {[%clk 0:01:26]}  Kg7 {[%clk 0:01:37]} 28. Ne2 {[%clk 0:01:08]}  Qd6 {[%clk 0:01:31]} 29. b3 {[%clk 0:01:07]}  Nd1 {[%clk 0:01:24]} 30. f5 {[%clk 0:00:58]}  Nf2 {[%clk 0:01:24]} 31. fxg6 {[%clk 0:00:53]}  hxg6 {[%clk 0:01:22]} 32. Bc2 {[%clk 0:00:40]}  Qd7 {[%clk 0:00:55]} 33. Nxd4 {[%clk 0:00:32]}  Qxd4 {[%clk 0:00:49]} 34. Kg2 {[%clk 0:00:32]}  Nxh3 {[%clk 0:00:41]} 35. Kxh3 {[%clk 0:00:28]}  Qd2 {[%clk 0:00:41]} 36. Qe4 {[%clk 0:00:26]}  Qh6+ {[%clk 0:00:41]} 37. Kg2 {[%clk 0:00:26]}  Qd2+ {[%clk 0:00:41]} 38. Kf3 {[%clk 0:00:25]}  Qc3+ {[%clk 0:00:39]} 39. Kg4 {[%clk 0:00:20]}  Qf6 {[%clk 0:00:38]} 40. Kh3 {[%clk 0:00:18]}  Qg5 {[%clk 0:00:37]} 41. Kg2 {[%clk 0:00:15]}  Qd2+ {[%clk 0:00:37]} 42. Kh3 {[%clk 0:00:15]}  Qh6+ {[%clk 0:00:35]} 43. Kg2 {[%clk 0:00:12]}  Qd2+ {[%clk 0:00:35]} 1/2-1/2


[Site "https://www.chess.com"]

[Event "Titled Tuesday Blitz May 03 Early 2022"]
[White "Cunha, Lucas Aguiar"]
[Black "Namitbir Singh Walia"]
[WhiteFideId "2125404"]
[BlackFideId "35071068"]
[WhiteElo "2361"]
[BlackElo "1565"]
[Result "1-0"]
[Round "01"]
[TimeControl "180+1"]
[Date "2022.05.03"]
[WhiteClock "0:00:58"]
[BlackClock "0:00:10"]

1. e4 {[%clk 0:02:59]}  c5 {[%clk 0:02:59]} 2. Nf3 {[%clk 0:02:59]}  Nc6 {[%clk 0:03:00]} 3. Nc3 {[%clk 0:02:59]}  g6 {[%clk 0:02:59]} 4. d4 {[%clk 0:02:58]}  cxd4 {[%clk 0:02:59]} 5. Nxd4 {[%clk 0:02:59]}  Bg7 {[%clk 0:02:59]} 6. Nb3 {[%clk 0:02:59]}  d6 {[%clk 0:02:58]} 7. Be2 {[%clk 0:02:59]}  Nf6 {[%clk 0:02:58]} 8. g4 {[%clk 0:02:59]}  O-O {[%clk 0:02:55]} 9. g5 {[%clk 0:02:59]}  Nd7 {[%clk 0:02:54]} 10. Be3 {[%clk 0:02:57]}  a5 {[%clk 0:02:44]} 11. a4 {[%clk 0:02:55]}  b6 {[%clk 0:02:36]} 12. f4 {[%clk 0:02:54]}  Nc5 {[%clk 0:02:36]} 13. Nd4 {[%clk 0:02:52]}  Bb7 {[%clk 0:02:32]} 14. Ndb5 {[%clk 0:02:51]}  Nb4 {[%clk 0:02:22]} 15. Bf3 {[%clk 0:02:46]}  Rc8 {[%clk 0:02:14]} 16. O-O {[%clk 0:02:30]}  h6 {[%clk 0:01:06]} 17. gxh6 {[%clk 0:02:26]}  Bxh6 {[%clk 0:01:07]} 18. Qd2 {[%clk 0:02:20]}  Qd7 {[%clk 0:00:57]} 19. Rae1 {[%clk 0:02:15]}  Bc6 {[%clk 0:00:53]} 20. b3 {[%clk 0:02:11]}  Qb7 {[%clk 0:00:45]} 21. f5 {[%clk 0:02:04]}  Bxe3+ {[%clk 0:00:44]} 22. Rxe3 {[%clk 0:02:04]}  Nd7 {[%clk 0:00:36]} 23. Bg2 {[%clk 0:01:56]}  Ne5 {[%clk 0:00:36]} 24. f6 {[%clk 0:01:55]}  exf6 {[%clk 0:00:27]} 25. Nxd6 {[%clk 0:01:32]}  Rcd8 {[%clk 0:00:26]} 26. Rd1 {[%clk 0:01:29]}  Qe7 {[%clk 0:00:24]} 27. Rg3 {[%clk 0:01:12]}  Rd7 {[%clk 0:00:24]} 28. Nf5 {[%clk 0:01:09]}  Qd8 {[%clk 0:00:22]} 29. Qh6 {[%clk 0:01:08]}  Rxd1+ {[%clk 0:00:23]} 30. Bf1 {[%clk 0:01:03]}  Nf3+ {[%clk 0:00:20]} 31. Rxf3 {[%clk 0:01:00]}  Rxf1+ {[%clk 0:00:16]} 32. Kxf1 {[%clk 0:00:59]}  Bb5+ {[%clk 0:00:10]} 33. axb5 {[%clk 0:00:58]} 1-0


[Site "https://www.chess.com"]

[Event "Titled Tuesday Blitz May 03 Early 2022"]
[White "Delorme, Alban"]
[Black "Solovchuk, Oleksiy"]
[WhiteFideId "623636"]
[BlackFideId "14115220"]
[WhiteElo "2197"]
[BlackElo "2305"]
[Result "1-0"]
[Round "01"]
[TimeControl "180+1"]
[Date "2022.05.03"]
[WhiteClock "0:00:15"]
[BlackClock "0:00:18"]

1. d4 {[%clk 0:02:58]}  Nf6 {[%clk 0:02:59]} 2. Nf3 {[%clk 0:02:59]}  e6 {[%clk 0:02:59]} 3. g3 {[%clk 0:03:00]}  b6 {[%clk 0:02:59]} 4. Bg2 {[%clk 0:03:00]}  Bb7 {[%clk 0:02:59]} 5. O-O {[%clk 0:03:01]}  c5 {[%clk 0:03:00]} 6. c4 {[%clk 0:03:01]}  cxd4 {[%clk 0:03:00]} 7. Qxd4 {[%clk 0:03:01]}  Be7 {[%clk 0:02:58]} 8. Nc3 {[%clk 0:03:00]}  Nc6 {[%clk 0:02:51]} 9. Qf4 {[%clk 0:02:59]}  d6 {[%clk 0:02:47]} 10. b3 {[%clk 0:02:59]}  a6 {[%clk 0:02:47]} 11. Rd1 {[%clk 0:02:58]}  Qc7 {[%clk 0:02:47]} 12. Ba3 {[%clk 0:02:54]}  Rd8 {[%clk 0:02:47]} 13. Rac1 {[%clk 0:02:54]}  Qb8 {[%clk 0:02:40]} 14. Na4 {[%clk 0:02:51]}  b5 {[%clk 0:02:36]} 15. cxb5 {[%clk 0:02:45]}  axb5 {[%clk 0:02:36]} 16. Nc3 {[%clk 0:02:44]}  Ba8 {[%clk 0:02:36]} 17. Ne4 {[%clk 0:02:29]}  b4 {[%clk 0:02:31]} 18. Bb2 {[%clk 0:02:25]}  Nxe4 {[%clk 0:01:45]} 19. Qxe4 {[%clk 0:02:24]}  Ne5 {[%clk 0:01:44]} 20. Qf4 {[%clk 0:02:10]}  Ng6 {[%clk 0:01:43]} 21. Qd4 {[%clk 0:01:59]}  e5 {[%clk 0:01:42]} 22. Qd2 {[%clk 0:01:54]}  O-O {[%clk 0:01:40]} 23. h4 {[%clk 0:01:55]}  h5 {[%clk 0:01:31]} 24. Ng5 {[%clk 0:01:48]}  Bxg2 {[%clk 0:01:29]} 25. Kxg2 {[%clk 0:01:49]}  d5 {[%clk 0:01:30]} 26. Rc6 {[%clk 0:01:40]}  d4 {[%clk 0:01:09]} 27. Rdc1 {[%clk 0:01:37]}  Rc8 {[%clk 0:01:04]} 28. f3 {[%clk 0:01:32]}  Qa8 {[%clk 0:01:03]} 29. Rc7 {[%clk 0:00:59]}  Rxc7 {[%clk 0:00:41]} 30. Rxc7 {[%clk 0:00:59]}  Bxg5 {[%clk 0:00:38]} 31. hxg5 {[%clk 0:00:57]}  Qxa2 {[%clk 0:00:38]} 32. Qc2 {[%clk 0:00:53]}  h4 {[%clk 0:00:37]} 33. Bc1 {[%clk 0:00:42]}  Qa1 {[%clk 0:00:25]} 34. Rc4 {[%clk 0:00:40]}  hxg3 {[%clk 0:00:19]} 35. Rxb4 {[%clk 0:00:39]}  Nf4+ {[%clk 0:00:18]} 36. Bxf4 {[%clk 0:00:38]}  exf4 {[%clk 0:00:18]} 37. g6 {[%clk 0:00:34]}  Qe1 {[%clk 0:00:16]} 38. gxf7+ {[%clk 0:00:30]}  Kh8 {[%clk 0:00:16]} 39. e4 {[%clk 0:00:27]}  dxe3 {[%clk 0:00:14]} 40. Rxf4 {[%clk 0:00:26]}  g5 {[%clk 0:00:11]} 41. Qb2+ {[%clk 0:00:22]}  Kh7 {[%clk 0:00:11]} 42. Qc2+ {[%clk 0:00:23]}  Kg7 {[%clk 0:00:11]} 43. Qb2+ {[%clk 0:00:23]}  Kh6 {[%clk 0:00:11]} 44. Qf6+ {[%clk 0:00:19]}  Kh5 {[%clk 0:00:10]} 45. Rh4+ {[%clk 0:00:19]}  gxh4 {[%clk 0:00:10]} 46. Qf5+ {[%clk 0:00:20]}  Kh6 {[%clk 0:00:11]} 47. Qf6+ {[%clk 0:00:19]}  Kh7 {[%clk 0:00:11]} 48. Qxh4+ {[%clk 0:00:13]}  Kg6 {[%clk 0:00:12]} 49. Qg4+ {[%clk 0:00:13]}  Kxf7 {[%clk 0:00:12]} 50. Qf5+ {[%clk 0:00:14]}  Ke7 {[%clk 0:00:12]} 51. Qe5+ {[%clk 0:00:14]}  Kd7 {[%clk 0:00:13]} 52. Qd5+ {[%clk 0:00:15]}  Kc7 {[%clk 0:00:13]} 53. Qc5+ {[%clk 0:00:14]}  Kb7 {[%clk 0:00:14]} 54. Qb5+ {[%clk 0:00:13]}  Ka7 {[%clk 0:00:14]} 55. Qc5+ {[%clk 0:00:14]}  Ka6 {[%clk 0:00:14]} 56. Qc6+ {[%clk 0:00:14]}  Ka5 {[%clk 0:00:15]} 57. Qc5+ {[%clk 0:00:15]}  Ka6 {[%clk 0:00:15]} 58. Qc6+ {[%clk 0:00:14]}  Ka7 {[%clk 0:00:16]} 59. Qc7+ {[%clk 0:00:14]}  Ka8 {[%clk 0:00:16]} 60. Qc6+ {[%clk 0:00:14]}  Kb8 {[%clk 0:00:16]} 61. Qb6+ {[%clk 0:00:15]}  Kc8 {[%clk 0:00:17]} 62. Qc6+ {[%clk 0:00:15]}  Kd8 {[%clk 0:00:17]} 63. Qd6+ {[%clk 0:00:16]}  Ke8 {[%clk 0:00:18]} 64. Qe6+ {[%clk 0:00:16]}  Kd8 {[%clk 0:00:18]} 65. Qd6+ {[%clk 0:00:17]}  Kc8 {[%clk 0:00:19]} 66. Qxf8+ {[%clk 0:00:17]}  Kd7 {[%clk 0:00:18]} 67. Qf7+ {[%clk 0:00:16]}  Kd6 {[%clk 0:00:18]} 68. Qf6+ {[%clk 0:00:17]}  Kd5 {[%clk 0:00:18]} 69. Qg5+ {[%clk 0:00:17]}  Kd4 {[%clk 0:00:18]} 70. Qd8+ {[%clk 0:00:15]}  Kc3 {[%clk 0:00:18]} 71. Qa5+ {[%clk 0:00:15]} 1-0


[Site "https://www.chess.com"]

[Event "Titled Tuesday Blitz May 03 Early 2022"]
[White "Djokic, Mihailo"]
[Black "Ozturk, Efe Hakan"]
[WhiteFideId "976440"]
[BlackFideId "34550216"]
[WhiteElo "2202"]
[BlackElo "1924"]
[Result "1-0"]
[Round "01"]
[TimeControl "180+1"]
[Date "2022.05.03"]
[WhiteClock "0:00:56"]
[BlackClock "0:00:02"]

1. e4 {[%clk 0:03:00]}  g6 {[%clk 0:02:58]} 2. d4 {[%clk 0:03:01]}  Bg7 {[%clk 0:02:55]} 3. Nc3 {[%clk 0:03:01]}  c6 {[%clk 0:02:56]} 4. Be3 {[%clk 0:03:01]}  d5 {[%clk 0:02:56]} 5. Nf3 {[%clk 0:03:01]}  dxe4 {[%clk 0:02:55]} 6. Nxe4 {[%clk 0:03:02]}  Nf6 {[%clk 0:02:56]} 7. Nxf6+ {[%clk 0:03:02]}  exf6 {[%clk 0:02:57]} 8. Be2 {[%clk 0:03:01]}  O-O {[%clk 0:02:57]} 9. Qd2 {[%clk 0:03:02]}  Re8 {[%clk 0:02:42]} 10. h4 {[%clk 0:03:02]}  h5 {[%clk 0:02:42]} 11. O-O-O {[%clk 0:03:02]}  Be6 {[%clk 0:02:39]} 12. Kb1 {[%clk 0:03:01]}  Qd5 {[%clk 0:02:38]} 13. c4 {[%clk 0:03:00]}  Bf5+ {[%clk 0:02:35]} 14. Ka1 {[%clk 0:02:57]}  Qe4 {[%clk 0:02:09]} 15. Qc3 {[%clk 0:02:57]}  Qc2 {[%clk 0:01:51]} 16. Qxc2 {[%clk 0:02:52]}  Bxc2 {[%clk 0:01:52]} 17. Rd2 {[%clk 0:02:40]}  Be4 {[%clk 0:01:52]} 18. d5 {[%clk 0:02:29]}  Na6 {[%clk 0:01:35]} 19. a3 {[%clk 0:02:12]}  f5 {[%clk 0:01:16]} 20. g3 {[%clk 0:01:53]}  c5 {[%clk 0:00:44]} 21. Rhd1 {[%clk 0:01:45]}  b6 {[%clk 0:00:40]} 22. Ng5 {[%clk 0:01:43]}  Rad8 {[%clk 0:00:37]} 23. Bf4 {[%clk 0:01:38]}  Bd4 {[%clk 0:00:32]} 24. f3 {[%clk 0:01:38]}  f6 {[%clk 0:00:25]} 25. fxe4 {[%clk 0:01:18]}  fxg5 {[%clk 0:00:25]} 26. Bxg5 {[%clk 0:01:18]}  Rd7 {[%clk 0:00:20]} 27. exf5 {[%clk 0:01:18]}  gxf5 {[%clk 0:00:19]} 28. Bxh5 {[%clk 0:01:18]}  Re4 {[%clk 0:00:12]} 29. Bf3 {[%clk 0:01:18]}  Re8 {[%clk 0:00:10]} 30. Kb1 {[%clk 0:01:17]}  Nc7 {[%clk 0:00:04]} 31. Rf1 {[%clk 0:01:17]}  b5 {[%clk 0:00:04]} 32. Bh5 {[%clk 0:01:16]}  Rb8 {[%clk 0:00:03]} 33. cxb5 {[%clk 0:01:13]}  Nxb5 {[%clk 0:00:04]} 34. Ka2 {[%clk 0:01:12]}  Rxd5 {[%clk 0:00:02]} 35. Re2 {[%clk 0:01:07]}  Nd6 {[%clk 0:00:02]} 36. b3 {[%clk 0:01:03]}  Re5 {[%clk 0:00:02]} 37. Rc2 {[%clk 0:00:58]}  Ne4 {[%clk 0:00:02]} 38. Bf4 {[%clk 0:00:57]}  Rd5 {[%clk 0:00:02]} 39. Bxb8 {[%clk 0:00:57]}  Nc3+ {[%clk 0:00:02]} 40. Rxc3 {[%clk 0:00:57]}  Bxc3 {[%clk 0:00:03]} 41. Rf2 {[%clk 0:00:56]}  Rd2+ {[%clk 0:00:03]} 42. Rxd2 {[%clk 0:00:56]}  Bxd2 {[%clk 0:00:04]} 43. Bf4 {[%clk 0:00:56]}  Bxf4 {[%clk 0:00:02]} 44. gxf4 {[%clk 0:00:56]} 1-0


[Site "https://www.chess.com"]

[Event "Titled Tuesday Blitz May 03 Early 2022"]
[White "Donchenko, Alexander"]
[Black "Manukyan, Sargis A."]
[WhiteFideId "24603295"]
[BlackFideId "13303970"]
[WhiteElo "2539"]
[BlackElo "2187"]
[Result "1-0"]
[Round "01"]
[TimeControl "180+1"]
[Date "2022.05.03"]
[WhiteClock "0:02:25"]
[BlackClock "0:01:33"]

1. d4 {[%clk 0:03:00]}  d5 {[%clk 0:02:50]} 2. Nf3 {[%clk 0:03:00]}  e6 {[%clk 0:02:49]} 3. Bf4 {[%clk 0:03:00]}  c5 {[%clk 0:02:48]} 4. e3 {[%clk 0:03:00]}  Nc6 {[%clk 0:02:48]} 5. c3 {[%clk 0:02:58]}  Bd6 {[%clk 0:02:48]} 6. Bg3 {[%clk 0:02:56]}  Bxg3 {[%clk 0:02:46]} 7. hxg3 {[%clk 0:02:55]}  cxd4 {[%clk 0:02:47]} 8. exd4 {[%clk 0:02:55]}  Nf6 {[%clk 0:02:48]} 9. Bd3 {[%clk 0:02:54]}  h6 {[%clk 0:02:48]} 10. Nbd2 {[%clk 0:02:54]}  Qd6 {[%clk 0:02:47]} 11. Qe2 {[%clk 0:02:53]}  Rb8 {[%clk 0:02:48]} 12. a4 {[%clk 0:02:51]}  a6 {[%clk 0:02:47]} 13. a5 {[%clk 0:02:51]}  Qc7 {[%clk 0:02:46]} 14. b4 {[%clk 0:02:47]}  Ne7 {[%clk 0:02:39]} 15. Rc1 {[%clk 0:02:44]}  b6 {[%clk 0:02:33]} 16. axb6 {[%clk 0:02:44]}  Rxb6 {[%clk 0:02:34]} 17. O-O {[%clk 0:02:41]}  O-O {[%clk 0:02:32]} 18. Nb3 {[%clk 0:02:41]}  Bb7 {[%clk 0:02:29]} 19. Nc5 {[%clk 0:02:40]}  Nd7 {[%clk 0:02:26]} 20. Ra1 {[%clk 0:02:36]}  Nxc5 {[%clk 0:02:26]} 21. dxc5 {[%clk 0:02:37]}  Rc6 {[%clk 0:02:23]} 22. Ne5 {[%clk 0:02:36]}  a5 {[%clk 0:02:15]} 23. Rxa5 {[%clk 0:02:33]}  f6 {[%clk 0:02:07]} 24. Nxc6 {[%clk 0:02:33]}  Qxc6 {[%clk 0:02:08]} 25. b5 {[%clk 0:02:28]}  Qxc5 {[%clk 0:02:05]} 26. Qxe6+ {[%clk 0:02:28]}  Kh8 {[%clk 0:02:05]} 27. Re1 {[%clk 0:02:27]}  Qxc3 {[%clk 0:01:33]} 28. Qxe7 {[%clk 0:02:26]}  Rg8 {[%clk 0:01:33]} 29. Ra3 {[%clk 0:02:25]} 1-0


[Site "https://www.chess.com"]

[Event "Titled Tuesday Blitz May 03 Early 2022"]
[White "Erdogdu, Mert"]
[Black "Heinemann, Josefine"]
[WhiteFideId "6301495"]
[BlackFideId "12900460"]
[WhiteElo "2485"]
[BlackElo "2300"]
[Result "0-1"]
[Round "01"]
[TimeControl "180+1"]
[Date "2022.05.03"]
[WhiteClock "0:00:06"]
[BlackClock "0:00:19"]

1. e4 {[%clk 0:03:00]}  c6 {[%clk 0:02:45]} 2. d4 {[%clk 0:03:00]}  d5 {[%clk 0:02:40]} 3. exd5 {[%clk 0:03:01]}  cxd5 {[%clk 0:02:40]} 4. c4 {[%clk 0:03:02]}  Nf6 {[%clk 0:02:35]} 5. Nc3 {[%clk 0:03:01]}  Nc6 {[%clk 0:02:35]} 6. Bg5 {[%clk 0:03:01]}  Be6 {[%clk 0:02:29]} 7. a3 {[%clk 0:03:00]}  Rc8 {[%clk 0:02:21]} 8. Be2 {[%clk 0:02:52]}  h6 {[%clk 0:02:10]} 9. Bxf6 {[%clk 0:02:48]}  exf6 {[%clk 0:02:11]} 10. Bf3 {[%clk 0:02:48]}  Ne7 {[%clk 0:02:01]} 11. c5 {[%clk 0:02:17]}  g6 {[%clk 0:01:52]} 12. Nge2 {[%clk 0:02:17]}  Bg7 {[%clk 0:01:52]} 13. O-O {[%clk 0:02:17]}  O-O {[%clk 0:01:52]} 14. Nf4 {[%clk 0:02:17]}  f5 {[%clk 0:01:49]} 15. Re1 {[%clk 0:02:16]}  Qd7 {[%clk 0:01:45]} 16. b4 {[%clk 0:02:12]}  Nc6 {[%clk 0:01:41]} 17. Bxd5 {[%clk 0:02:00]}  Bxd5 {[%clk 0:01:39]} 18. Nfxd5 {[%clk 0:01:53]}  Rcd8 {[%clk 0:01:22]} 19. Qa4 {[%clk 0:01:27]}  Nxd4 {[%clk 0:01:16]} 20. Qxa7 {[%clk 0:01:27]}  Rfe8 {[%clk 0:01:07]} 21. Rxe8+ {[%clk 0:01:22]}  Rxe8 {[%clk 0:01:08]} 22. Rf1 {[%clk 0:01:18]}  g5 {[%clk 0:00:55]} 23. Qb6 {[%clk 0:01:12]}  Ne2+ {[%clk 0:00:52]} 24. Nxe2 {[%clk 0:01:08]}  Qxd5 {[%clk 0:00:52]} 25. Ng3 {[%clk 0:01:04]}  Re6 {[%clk 0:00:38]} 26. Qc7 {[%clk 0:01:00]}  f4 {[%clk 0:00:28]} 27. Nh5 {[%clk 0:00:57]}  Bd4 {[%clk 0:00:29]} 28. Qc8+ {[%clk 0:00:40]}  Kh7 {[%clk 0:00:28]} 29. Qf8 {[%clk 0:00:37]}  Re2 {[%clk 0:00:24]} 30. Kh1 {[%clk 0:00:35]}  Kg6 {[%clk 0:00:22]} 31. h3 {[%clk 0:00:05]}  Kxh5 {[%clk 0:00:21]} 32. Qg8 {[%clk 0:00:06]}  Rxf2 {[%clk 0:00:18]} 33. Rxf2 {[%clk 0:00:06]}  Bxf2 {[%clk 0:00:19]} 34. Kh2 {[%clk 0:00:06]}  Bg3+ {[%clk 0:00:19]} 0-1


[Site "https://www.chess.com"]

[Event "Titled Tuesday Blitz May 03 Early 2022"]
[White "Estrada Nieto, Julian"]
[Black "Darini, Pouria"]
[WhiteFideId "5101018"]
[BlackFideId "12502200"]
[WhiteElo "2252"]
[BlackElo "2489"]
[Result "0-1"]
[Round "01"]
[TimeControl "180+1"]
[Date "2022.05.03"]
[WhiteClock "0:00:06"]
[BlackClock "0:00:14"]

1. e4 {[%clk 0:02:54]}  c5 {[%clk 0:02:59]} 2. Nf3 {[%clk 0:02:53]}  d6 {[%clk 0:02:59]} 3. d4 {[%clk 0:02:53]}  cxd4 {[%clk 0:02:59]} 4. Qxd4 {[%clk 0:02:54]}  Nf6 {[%clk 0:02:58]} 5. Nc3 {[%clk 0:02:53]}  Nc6 {[%clk 0:02:57]} 6. Bb5 {[%clk 0:02:53]}  Bd7 {[%clk 0:02:57]} 7. Bxc6 {[%clk 0:02:53]}  Bxc6 {[%clk 0:02:58]} 8. Bg5 {[%clk 0:02:53]}  e6 {[%clk 0:02:58]} 9. O-O-O {[%clk 0:02:52]}  Be7 {[%clk 0:02:59]} 10. Rhe1 {[%clk 0:02:51]}  O-O {[%clk 0:02:55]} 11. Kb1 {[%clk 0:02:50]}  Qa5 {[%clk 0:02:38]} 12. Qd2 {[%clk 0:02:48]}  Qa6 {[%clk 0:02:21]} 13. Nd4 {[%clk 0:02:47]}  b5 {[%clk 0:02:11]} 14. f3 {[%clk 0:02:44]}  b4 {[%clk 0:02:10]} 15. Nce2 {[%clk 0:02:44]}  Rfc8 {[%clk 0:01:54]} 16. g4 {[%clk 0:02:43]}  Be8 {[%clk 0:01:46]} 17. Ng3 {[%clk 0:02:42]}  Rc5 {[%clk 0:01:13]} 18. h4 {[%clk 0:02:28]}  Ra5 {[%clk 0:01:10]} 19. Nb3 {[%clk 0:02:12]}  Rxa2 {[%clk 0:01:10]} 20. Nh5 {[%clk 0:02:11]}  Bb5 {[%clk 0:00:40]} 21. Bxf6 {[%clk 0:02:08]}  Bxf6 {[%clk 0:00:38]} 22. Nxf6+ {[%clk 0:02:03]}  gxf6 {[%clk 0:00:38]} 23. Qxb4 {[%clk 0:01:49]}  Rd8 {[%clk 0:00:29]} 24. Qc3 {[%clk 0:01:23]}  Bc4 {[%clk 0:00:28]} 25. Rd4 {[%clk 0:01:00]}  Rc8 {[%clk 0:00:16]} 26. Kc1 {[%clk 0:00:52]}  e5 {[%clk 0:00:04]} 27. Rdd1 {[%clk 0:00:45]}  Bxb3 {[%clk 0:00:03]} 28. Qxb3 {[%clk 0:00:42]}  Qa5 {[%clk 0:00:03]} 29. c3 {[%clk 0:00:35]}  Rc6 {[%clk 0:00:04]} 30. Kc2 {[%clk 0:00:35]}  Rb6 {[%clk 0:00:04]} 31. Rd5 {[%clk 0:00:32]}  Rxb3 {[%clk 0:00:02]} 32. Rxa5 {[%clk 0:00:31]}  Rbxb2+ {[%clk 0:00:03]} 33. Kc1 {[%clk 0:00:29]}  Rc2+ {[%clk 0:00:04]} 34. Kb1 {[%clk 0:00:29]}  Rab2+ {[%clk 0:00:04]} 35. Ka1 {[%clk 0:00:29]}  Rb7 {[%clk 0:00:04]} 36. Rd1 {[%clk 0:00:28]}  Rxc3 {[%clk 0:00:03]} 37. Rxd6 {[%clk 0:00:27]}  Rxf3 {[%clk 0:00:04]} 38. Raa6 {[%clk 0:00:26]}  Rf1+ {[%clk 0:00:04]} 39. Ka2 {[%clk 0:00:26]}  Rf2+ {[%clk 0:00:05]} 40. Ka3 {[%clk 0:00:25]}  Rf3+ {[%clk 0:00:06]} 41. Ka2 {[%clk 0:00:24]}  Kg7 {[%clk 0:00:06]} 42. g5 {[%clk 0:00:23]}  Rf2+ {[%clk 0:00:07]} 43. Ka3 {[%clk 0:00:22]}  Rf3+ {[%clk 0:00:07]} 44. Ka2 {[%clk 0:00:20]}  fxg5 {[%clk 0:00:08]} 45. hxg5 {[%clk 0:00:20]}  Rf2+ {[%clk 0:00:09]} 46. Ka3 {[%clk 0:00:19]}  Rf3+ {[%clk 0:00:09]} 47. Ka2 {[%clk 0:00:19]}  Rf4 {[%clk 0:00:10]} 48. Ra4 {[%clk 0:00:16]}  Rf2+ {[%clk 0:00:10]} 49. Ka3 {[%clk 0:00:15]}  Rf3+ {[%clk 0:00:11]} 50. Ka2 {[%clk 0:00:15]}  Rf2+ {[%clk 0:00:11]} 51. Ka1 {[%clk 0:00:15]}  Rf1+ {[%clk 0:00:12]} 52. Ka2 {[%clk 0:00:15]}  Rg1 {[%clk 0:00:12]} 53. Rd5 {[%clk 0:00:14]}  Rxg5 {[%clk 0:00:13]} 54. Raa5 {[%clk 0:00:14]}  f6 {[%clk 0:00:12]} 55. Rac5 {[%clk 0:00:13]}  Rg2+ {[%clk 0:00:12]} 56. Ka3 {[%clk 0:00:12]}  Rg3+ {[%clk 0:00:12]} 57. Ka2 {[%clk 0:00:12]}  Rg2+ {[%clk 0:00:12]} 58. Ka3 {[%clk 0:00:12]}  Rg4 {[%clk 0:00:13]} 59. Rc4 {[%clk 0:00:08]}  h5 {[%clk 0:00:13]} 60. Rb4 {[%clk 0:00:07]}  Rxb4 {[%clk 0:00:12]} 61. Kxb4 {[%clk 0:00:07]}  Rxe4+ {[%clk 0:00:13]} 62. Kc3 {[%clk 0:00:05]}  Rd4 {[%clk 0:00:14]} 63. Ra5 {[%clk 0:00:02]}  Rd7 {[%clk 0:00:14]} 64. Ra6 {[%clk 0:00:02]}  Kg6 {[%clk 0:00:14]} 65. Kc4 {[%clk 0:00:02]}  Kg5 {[%clk 0:00:14]} 66. Kc5 {[%clk 0:00:03]}  h4 {[%clk 0:00:14]} 67. Kc6 {[%clk 0:00:04]}  Rd4 {[%clk 0:00:15]} 68. Kc7 {[%clk 0:00:04]}  h3 {[%clk 0:00:15]} 69. Rxa7 {[%clk 0:00:04]}  h2 {[%clk 0:00:15]} 70. Ra8 {[%clk 0:00:05]}  h1=Q {[%clk 0:00:15]} 71. Rg8+ {[%clk 0:00:06]}  Kf5 {[%clk 0:00:14]} 0-1


[Site "https://www.chess.com"]

[Event "Titled Tuesday Blitz May 03 Early 2022"]
[White "Fernandez Siles, Luis"]
[Black "Taichman, Ori"]
[WhiteFideId "2209420"]
[BlackFideId "2804069"]
[WhiteElo "2212"]
[BlackElo "2227"]
[Result "0-1"]
[Round "01"]
[TimeControl "180+1"]
[Date "2022.05.03"]
[WhiteClock "0:00:16"]
[BlackClock "0:00:15"]

1. d4 {[%clk 0:02:58]}  Nf6 {[%clk 0:02:59]} 2. c4 {[%clk 0:02:56]}  g6 {[%clk 0:03:00]} 3. Nc3 {[%clk 0:02:56]}  Bg7 {[%clk 0:03:00]} 4. e4 {[%clk 0:02:56]}  O-O {[%clk 0:03:01]} 5. Nf3 {[%clk 0:02:56]}  d6 {[%clk 0:03:02]} 6. Be2 {[%clk 0:02:57]}  e5 {[%clk 0:03:02]} 7. O-O {[%clk 0:02:57]}  Nc6 {[%clk 0:03:03]} 8. d5 {[%clk 0:02:58]}  Ne7 {[%clk 0:03:04]} 9. b4 {[%clk 0:02:58]}  Ne8 {[%clk 0:03:04]} 10. a4 {[%clk 0:02:54]}  f5 {[%clk 0:03:04]} 11. Ba3 {[%clk 0:02:49]}  Bh6 {[%clk 0:02:45]} 12. c5 {[%clk 0:02:42]}  Nf6 {[%clk 0:02:19]} 13. cxd6 {[%clk 0:02:16]}  cxd6 {[%clk 0:02:15]} 14. Nd2 {[%clk 0:02:09]}  Bxd2 {[%clk 0:02:09]} 15. Qxd2 {[%clk 0:02:09]}  fxe4 {[%clk 0:02:07]} 16. a5 {[%clk 0:01:26]}  Nf5 {[%clk 0:02:01]} 17. a6 {[%clk 0:01:23]}  bxa6 {[%clk 0:01:51]} 18. b5 {[%clk 0:01:18]}  Nd4 {[%clk 0:01:50]} 19. Bc4 {[%clk 0:01:06]}  axb5 {[%clk 0:00:48]} 20. Nxb5 {[%clk 0:01:05]}  Nxb5 {[%clk 0:00:48]} 21. Bxb5 {[%clk 0:01:06]}  Bb7 {[%clk 0:00:39]} 22. Bc6 {[%clk 0:01:06]}  Rb8 {[%clk 0:00:37]} 23. Rac1 {[%clk 0:00:44]}  Ba6 {[%clk 0:00:35]} 24. Rfe1 {[%clk 0:00:38]}  Ng4 {[%clk 0:00:35]} 25. Rxe4 {[%clk 0:00:29]}  Nxf2 {[%clk 0:00:24]} 26. Ra4 {[%clk 0:00:29]}  Qb6 {[%clk 0:00:17]} 27. Bxd6 {[%clk 0:00:20]}  Nd1+ {[%clk 0:00:14]} 28. Bc5 {[%clk 0:00:16]}  Rf1# {[%clk 0:00:15]} 0-1


[Site "https://www.chess.com"]